fUST/lending_fUST_20240923
["ID","MTS","AMOUNT","RATE_DAILY","PERIOD"]
[338898687,1727038270911,-224.77,0.00023835,2]
[338898688,1727038270922,-500.0,0.00023835,2]
[338898689,1727038270932,-529.39,0.00023835,2]
[338898690,1727038270943,-500.0,0.00023835,2]
[338898691,1727038270954,-500.0,0.00023835,2]
[338898692,1727038270966,-500.0,0.00023835,2]
[338898693,1727038270975,-500.0,0.00023835,2]
[338898694,1727038270984,-500.0,0.00023835,2]
[338898695,1727038270994,-500.0,0.00023835,2]
[338898696,1727038271005,-500.0,0.00023835,2]
[338898697,1727038271015,-685.75,0.00023835,2]
[338898698,1727038271024,-500.0,0.00023835,2]
[338898699,1727038271034,-502.64011639,0.00023835,2]
[338898700,1727038271046,-500.0,0.00023835,2]
[338898701,1727038271056,-500.0,0.00023835,2]
[338898702,1727038271066,-500.0,0.00023835,2]
[338898703,1727038271076,-500.0,0.00023835,2]
[338898704,1727038271087,-500.0,0.00023835,2]
[338898705,1727038271096,-500.0,0.00023835,2]
[338898706,1727038271106,-500.0,0.00023835,2]
[338898707,1727038271116,-500.0,0.00023835,2]
[338898708,1727038271126,-500.0,0.00023835,2]
[338898709,1727038271138,-500.0,0.00023835,2]
[338898710,1727038271148,-500.0,0.00023835,2]
[338898711,1727038271159,-503.36984804,0.00023835,2]
[338898712,1727038271169,-709.77,0.00023835,2]
[338898713,1727038271179,-1924.4,0.00023835,2]
[338898714,1727038271190,-615.86476731,0.00023835,2]
[338898715,1727038271199,-500.0,0.00023835,2]
[338898716,1727038271209,-500.0,0.00023835,2]
[338898717,1727038271222,-500.0,0.00023835,2]
[338898718,1727038271231,-500.0,0.00023835,2]
[338898719,1727038271242,-1639.55,0.00023835,2]
[338898720,1727038271252,-500.0,0.00023835,2]
[338898721,1727038271262,-389.13182437,0.00023835,2]
[338898722,1727038271273,-544.47893728,0.00023835,2]
[338898723,1727038271283,-500.0,0.00023835,2]
[338898724,1727038271293,-500.0,0.00023835,2]
[338898725,1727038271302,-500.0,0.00023835,2]
[338898726,1727038271312,-480.4057377,0.00023835,2]
[338898727,1727038271324,-500.0,0.00023835,2]
[338898728,1727038271334,-304.53863232,0.00023835,2]
[338898729,1727038271344,-258.64194883,0.00023835,2]
[338898730,1727038271354,-500.0,0.00023835,2]
[338898731,1727038271364,-500.0,0.00023835,2]
[338898733,1727038271373,-500.0,0.00023835,2]
[338898734,1727038271384,-204.69,0.00023835,2]
[338898735,1727038271393,-500.0,0.00023835,2]
[338898736,1727038271403,-180.4411142,0.00023835,2]
[338898737,1727038271412,-569.93,0.00023835,2]
[338898738,1727038271421,-500.0,0.00023835,2]
[338898739,1727038271431,-501.85,0.00023835,2]
[338898740,1727038271440,-575.84559766,0.00023835,2]
[338898741,1727038271449,-500.0,0.00023835,2]
[338898742,1727038271458,-500.0,0.00023835,2]
[338898743,1727038271604,-627.30998567,0.00023835,2]
[338898744,1727038271618,-614.14612106,0.00023835,2]
[338898745,1727038271629,-500.0,0.00023835,2]
[338898746,1727038271639,-876.95,0.00023835,2]
[338898747,1727038271649,-500.0,0.00023835,2]
[338898748,1727038271661,-2645.4,0.00023835,2]
[338898749,1727038271671,-500.0,0.00023835,2]
[338898750,1727038271680,-500.0,0.00023835,2]
[338898751,1727038271690,-500.0,0.00023835,2]
[338898752,1727038271700,-185.18956444,0.00023835,2]
[338898753,1727038271709,-500.0,0.00023835,2]
[338898754,1727038271720,-500.0,0.00023835,2]
[338898755,1727038271729,-500.0,0.00023835,2]
[338898756,1727038271739,-654.53,0.00023835,2]
[338898757,1727038271748,-32172.17,0.00023835,2]
[338898758,1727038271758,-500.0,0.00023835,2]
[338898759,1727038271768,-4735.24,0.00023835,2]
[338898760,1727038271778,-500.0,0.00023835,2]
[338898761,1727038271787,-514.47785694,0.00023835,2]
[338898762,1727038271796,-500.0,0.00023835,2]
[338898763,1727038271807,-151.0,0.00023929,2]
[338898764,1727038271817,-166.666666,0.00023969,2]
[338898765,1727038271830,-4040.24282706,0.00024,2]
[338898766,1727038271839,-2015.0,0.00024,2]
[338898767,1727038271849,-330.0,0.00024,2]
[338898768,1727038271858,-302.45563712,0.00024,2]
[338898769,1727038271869,-500.0,0.00024109,2]
[338898770,1727038271878,-500.0,0.00024109,2]
[338898771,1727038271887,-500.0,0.00024109,2]
[338898772,1727038271898,-646.33,0.00024109,2]
[338898773,1727038271907,-500.0,0.00024109,2]
[338898774,1727038271916,-518.32672632,0.00024109,2]
[338898775,1727038271926,-500.0,0.00024109,2]
[338898776,1727038271935,-500.0,0.00024109,2]
[338898777,1727038271949,-151.21152055,0.00024109,2]
[338898778,1727038271960,-500.0,0.00024109,2]
[338898779,1727038271971,-500.0,0.00024109,2]
[338898780,1727038271980,-588.45,0.00024109,2]
[338898781,1727038271989,-500.0,0.00024109,2]
[338898782,1727038271999,-500.0,0.00024109,2]
[338898783,1727038272008,-500.0,0.00024109,2]
[338898784,1727038272018,-200.0,0.00024109,2]
[338898785,1727038272029,-500.0,0.00024109,2]
[338898786,1727038272039,-153.63714072,0.00024109,2]
[338898787,1727038272050,-500.0,0.00024109,2]
[338898788,1727038272060,-613.41,0.00024109,2]
[338898789,1727038272069,-500.0,0.00024109,2]
[338898790,1727038272079,-500.0,0.00024109,2]
[338898791,1727038272090,-500.0,0.00024109,2]
[338898792,1727038272100,-500.0,0.00024109,2]
[338898793,1727038272109,-500.0,0.00024109,2]
[338898794,1727038272119,-734.82,0.00024109,2]
[338898795,1727038272129,-578.07,0.00024109,2]
[338898796,1727038272138,-1109.37,0.00024109,2]
[338898797,1727038272148,-500.0,0.00024109,2]
[338898798,1727038272157,-500.0,0.00024109,2]
[338898799,1727038272166,-660.37,0.00024109,2]
[338898800,1727038272176,-342.54,0.00024109,2]
[338898801,1727038272186,-659.72,0.00024109,2]
[338898802,1727038272196,-416.3392818,0.00024109,2]
[338898803,1727038272206,-500.0,0.00024109,2]
[338898804,1727038272217,-602.57,0.00024109,2]
[338898805,1727038272230,-283.28546886,0.00024109,2]
[338898806,1727038272240,-500.0,0.00024109,2]
[338898807,1727038272250,-504.11339532,0.00024109,2]
[338898808,1727038272259,-500.0,0.00024109,2]
[338898809,1727038272269,-500.0,0.00024109,2]
[338898810,1727038272279,-500.0,0.00024109,2]
[338898811,1727038272289,-500.0,0.00024109,2]
[338898812,1727038272299,-500.0,0.00024109,2]
[338898813,1727038272310,-685.75,0.00024109,2]
[338898814,1727038272320,-500.0,0.00024109,2]
[338898815,1727038272331,-500.0,0.00024109,2]
[338898816,1727038272341,-500.0,0.00024109,2]
[338898817,1727038272352,-500.0,0.00024109,2]
[338898818,1727038272362,-500.0,0.00024109,2]
[338898819,1727038272372,-515.14033975,0.00024109,2]
[338898820,1727038272383,-500.0,0.00024109,2]
[338898821,1727038272393,-500.0,0.00024109,2]
[338898822,1727038272403,-500.0,0.00024109,2]
[338898823,1727038272414,-500.0,0.00024109,2]
[338898824,1727038272423,-588.8500658,0.00024109,2]
[338898825,1727038272434,-500.0,0.00024109,2]
[338898826,1727038272444,-709.77,0.00024109,2]
[338898827,1727038272455,-1924.4,0.00024109,2]
[338898828,1727038272466,-500.0,0.00024109,2]
[338898829,1727038272475,-500.0,0.00024109,2]
[338898830,1727038272485,-500.0,0.00024109,2]
[338898831,1727038272495,-500.0,0.00024109,2]
[338898832,1727038272506,-1639.55,0.00024109,2]
[338898833,1727038272516,-500.0,0.00024109,2]
[338898834,1727038272528,-500.0,0.00024109,2]
[338898835,1727038272538,-500.0,0.00024109,2]
[338898836,1727038272547,-500.0,0.00024109,2]
[338898837,1727038272556,-500.0,0.00024109,2]
[338898838,1727038272566,-500.0,0.00024109,2]
[338898839,1727038272575,-500.0,0.00024109,2]
[338898840,1727038272585,-500.0,0.00024109,2]
[338898841,1727038272595,-204.69,0.00024109,2]
[338898842,1727038272607,-500.0,0.00024109,2]
[338898843,1727038272617,-500.0,0.00024109,2]
[338898844,1727038272628,-501.85,0.00024109,2]
[338898845,1727038272638,-155.45924294,0.00024109,2]
[338898846,1727038272649,-500.0,0.00024109,2]
[338898847,1727038272661,-500.0,0.00024109,2]
[338898848,1727038272671,-876.95,0.00024109,2]
[338898849,1727038272680,-500.0,0.00024109,2]
[338898850,1727038272690,-2645.4,0.00024109,2]
[338898851,1727038272700,-468.88,0.00024109,2]
[338898852,1727038272709,-500.0,0.00024109,2]
[338898853,1727038272720,-500.0,0.00024109,2]
[338898854,1727038272729,-500.0,0.00024109,2]
[338898855,1727038272739,-500.0,0.00024109,2]
[338898856,1727038272748,-500.0,0.00024109,2]
[338898857,1727038272758,-654.53,0.00024109,2]
[338898858,1727038272768,-32172.17,0.00024109,2]
[338898859,1727038272777,-500.0,0.00024109,2]
[338898860,1727038272787,-4735.24,0.00024109,2]
[338898861,1727038272797,-500.0,0.00024109,2]
[338898862,1727038272807,-154.45159944,0.00024109,2]
[338898863,1727038272817,-4647.7078881,0.000242,3]
[338898864,1727038272830,-330.0,0.000242,2]
[338898865,1727038272840,-1375.06311362,0.0002426,2]
[338898866,1727038272849,-500.0,0.00024383,2]
[338898867,1727038272858,-500.0,0.00024383,2]
[338898868,1727038272869,-500.0,0.00024383,2]
[338898869,1727038272879,-646.33,0.00024383,2]
[338898870,1727038272888,-500.0,0.00024383,2]
[338898871,1727038272898,-500.0,0.00024383,2]
[338898872,1727038272908,-485.88479884,0.00024383,2]
[338898873,1727038272917,-500.0,0.00024383,2]
[338898874,1727038272927,-500.0,0.00024383,2]
[338898875,1727038272936,-588.45,0.00024383,2]
[338898876,1727038272946,-500.0,0.00024383,2]
[338898877,1727038272955,-500.0,0.00024383,2]
[338898878,1727038272966,-163.92254053,0.00024383,2]
[338898879,1727038272975,-200.0,0.00024383,2]
[338898880,1727038272984,-500.0,0.00024383,2]
[338898881,1727038272994,-500.0,0.00024383,2]
[338898882,1727038273003,-613.41,0.00024383,2]
[338898883,1727038273013,-500.0,0.00024383,2]
[338898884,1727038273023,-500.0,0.00024383,2]
[338898885,1727038273035,-500.0,0.00024383,2]
[338898886,1727038273044,-503.37849909,0.00024383,2]
[338898887,1727038273054,-500.0,0.00024383,2]
[338898888,1727038273063,-734.82,0.00024383,2]
[338898889,1727038273072,-578.07,0.00024383,2]
[338898890,1727038273082,-1109.37,0.00024383,2]
[338898891,1727038273091,-500.0,0.00024383,2]
[338898892,1727038273101,-500.0,0.00024383,2]
[338898893,1727038273110,-660.37,0.00024383,2]
[338898894,1727038273119,-659.72,0.00024383,2]
[338898895,1727038273129,-500.0,0.00024383,2]
[338898896,1727038273138,-602.57,0.00024383,2]
[338898897,1727038273147,-500.0,0.00024383,2]
[338898898,1727038273159,-500.0,0.00024383,2]
[338898899,1727038273168,-500.0,0.00024383,2]
[338898900,1727038273180,-500.0,0.00024383,2]
[338898901,1727038273192,-503.46643142,0.00024383,2]
[338898902,1727038273202,-633.08026833,0.00024383,2]
[338898903,1727038273211,-685.75,0.00024383,2]
[338898904,1727038273222,-500.0,0.00024383,2]
[338898905,1727038273231,-500.0,0.00024383,2]
[338898906,1727038273241,-500.0,0.00024383,2]
[338898907,1727038273251,-500.0,0.00024383,2]
[338898908,1727038273261,-500.0,0.00024383,2]
[338898909,1727038273270,-500.0,0.00024383,2]
[338898910,1727038273280,-345.54049789,0.00024383,2]
[338898911,1727038273289,-500.0,0.00024383,2]
[338898912,1727038273299,-500.0,0.00024383,2]
[338898913,1727038273309,-500.0,0.00024383,2]
[338898914,1727038273318,-1924.4,0.00024383,2]
[338898915,1727038273328,-709.77,0.00024383,2]
[338898916,1727038273337,-500.0,0.00024383,2]
[338898917,1727038273346,-500.0,0.00024383,2]
[338898918,1727038273356,-500.0,0.00024383,2]
[338898919,1727038273365,-500.0,0.00024383,2]
[338898920,1727038273374,-1639.55,0.00024383,2]
[338898921,1727038273384,-500.0,0.00024383,2]
[338898922,1727038273393,-500.0,0.00024383,2]
[338898923,1727038273402,-414.73973575,0.00024383,2]
[338898924,1727038273412,-500.0,0.00024383,2]
[338898925,1727038273423,-500.0,0.00024383,2]
[338898926,1727038273433,-500.0,0.00024383,2]
[338898927,1727038273442,-500.0,0.00024383,2]
[338898928,1727038273452,-500.0,0.00024383,2]
[338898929,1727038273462,-204.69,0.00024383,2]
[338898930,1727038273474,-500.0,0.00024383,2]
[338898931,1727038273483,-150.61762041,0.00024383,2]
[338898932,1727038273496,-501.85,0.00024383,2]
[338898933,1727038273505,-500.0,0.00024383,2]
[338898934,1727038273515,-490.75,0.00024383,2]
[338898935,1727038273524,-876.95,0.00024383,2]
[338898936,1727038273534,-500.0,0.00024383,2]
[338898937,1727038273545,-2645.4,0.00024383,2]
[338898938,1727038273555,-500.0,0.00024383,2]
[338898939,1727038273565,-500.0,0.00024383,2]
[338898940,1727038273575,-500.0,0.00024383,2]
[338898941,1727038273584,-500.0,0.00024383,2]
[338898942,1727038273593,-500.0,0.00024383,2]
[338898943,1727038273603,-654.53,0.00024383,2]
[338898944,1727038273613,-32172.17,0.00024383,2]
[338898945,1727038273622,-500.0,0.00024383,2]
[338898946,1727038273632,-4735.24,0.00024383,2]
[338898947,1727038273642,-500.0,0.00024383,2]
[338898948,1727038273653,-330.0,0.000244,2]
[338898949,1727038273663,-151.0,0.00024435,2]
[338898950,1727038273672,-166.666666,0.00024482,2]
[338898951,1727038273682,-2000.0,0.000245,3]
[338898952,1727038273691,-4003.39,0.000245,2]
[338898953,1727038273702,-4963.71363463,0.000246,3]
[338898954,1727038273712,-2000.0,0.000246,5]
[338898955,1727038273725,-330.0,0.000246,2]
[338898956,1727038273734,-150.0,0.000246,2]
[338898957,1727038273743,-524.0,0.000246,2]
[338898958,1727038273856,-1216.0,0.000246,2]
[338898959,1727038273875,-500.0,0.00024657,2]
[338898960,1727038273884,-236.86579031,0.00024657,2]
[338898961,1727038273894,-500.0,0.00024657,2]
[338898962,1727038273906,-646.33,0.00024657,2]
[338898963,1727038273917,-500.0,0.00024657,2]
[338898964,1727038273928,-353.21859247,0.00024657,2]
[338898965,1727038273939,-500.0,0.00024657,2]
[338898966,1727038273949,-500.0,0.00024657,2]
[338898967,1727038273959,-588.45,0.00024657,2]
[338898968,1727038273970,-500.0,0.00024657,2]
[338898969,1727038273980,-500.0,0.00024657,2]
[338898970,1727038273989,-200.0,0.00024657,2]
[338898971,1727038273998,-500.0,0.00024657,2]
[338898972,1727038274009,-500.0,0.00024657,2]
[338898973,1727038274018,-613.41,0.00024657,2]
[338898974,1727038274028,-500.0,0.00024657,2]
[338898975,1727038274037,-500.0,0.00024657,2]
[338898976,1727038274048,-719.26,0.00024657,2]
[338898977,1727038274058,-719.26,0.00024657,2]
[338898978,1727038274068,-719.26,0.00024657,2]
[338898979,1727038274078,-719.26,0.00024657,2]
[338898980,1727038274087,-719.26,0.00024657,2]
[338898981,1727038274096,-719.26,0.00024657,2]
[338898982,1727038274106,-719.26,0.00024657,2]
[338898983,1727038274115,-719.26,0.00024657,2]
[338898984,1727038274125,-719.26,0.00024657,2]
[338898985,1727038274134,-719.26,0.00024657,2]
[338898986,1727038274144,-719.26,0.00024657,2]
[338898987,1727038274153,-500.0,0.00024657,2]
[338898988,1727038274163,-500.0,0.00024657,2]
[338898989,1727038274173,-734.82,0.00024657,2]
[338898990,1727038274183,-578.07,0.00024657,2]
[338898991,1727038274192,-1109.37,0.00024657,2]
[338898992,1727038274202,-446.26076011,0.00024657,2]
[338898993,1727038274211,-500.0,0.00024657,2]
[338898994,1727038274223,-660.37,0.00024657,2]
[338898995,1727038274232,-659.72,0.00024657,2]
[338898996,1727038274242,-500.0,0.00024657,2]
[338898997,1727038274252,-602.57,0.00024657,2]
[338898998,1727038274262,-264.43429725,0.00024657,2]
[338898999,1727038274272,-500.0,0.00024657,2]
[338899000,1727038274282,-500.0,0.00024657,2]
[338899001,1727038274292,-500.0,0.00024657,2]
[338899002,1727038274302,-685.75,0.00024657,2]
[338899003,1727038274312,-500.0,0.00024657,2]
[338899004,1727038274322,-500.0,0.00024657,2]
[338899005,1727038274333,-500.0,0.00024657,2]
[338899006,1727038274343,-500.0,0.00024657,2]
[338899007,1727038274354,-500.0,0.00024657,2]
[338899008,1727038274364,-500.0,0.00024657,2]
[338899009,1727038274374,-379.25002626,0.00024657,2]
[338899010,1727038274384,-500.0,0.00024657,2]
[338899011,1727038274394,-500.0,0.00024657,2]
[338899012,1727038274404,-1924.4,0.00024657,2]
[338899013,1727038274414,-709.77,0.00024657,2]
[338899014,1727038274424,-500.0,0.00024657,2]
[338899015,1727038274433,-500.0,0.00024657,2]
[338899016,1727038274443,-500.0,0.00024657,2]
[338899017,1727038274454,-500.0,0.00024657,2]
[338899018,1727038274464,-1639.55,0.00024657,2]
[338899019,1727038274474,-500.0,0.00024657,2]
[338899020,1727038274485,-481.35452033,0.00024657,2]
[338899021,1727038274495,-471.6,0.00024657,2]
[338899022,1727038274504,-500.0,0.00024657,2]
[338899023,1727038274514,-500.0,0.00024657,2]
[338899024,1727038274524,-500.0,0.00024657,2]
[338899025,1727038274533,-500.0,0.00024657,2]
[338899026,1727038274543,-204.69,0.00024657,2]
[338899027,1727038274552,-500.0,0.00024657,2]
[338899028,1727038274561,-501.85,0.00024657,2]
[338899029,1727038274571,-500.0,0.00024657,2]
[338899030,1727038274580,-876.95,0.00024657,2]
[338899031,1727038274591,-500.0,0.00024657,2]
[338899032,1727038274600,-2645.4,0.00024657,2]
[338899033,1727038274611,-273.21748905,0.00024657,2]
[338899034,1727038274621,-500.0,0.00024657,2]
[338899035,1727038274630,-500.0,0.00024657,2]
[338899036,1727038274639,-500.0,0.00024657,2]
[338899037,1727038274649,-283.86907839,0.00024657,2]
[338899038,1727038274659,-654.53,0.00024657,2]
[338899039,1727038274669,-32172.17,0.00024657,2]
[338899040,1727038274679,-269.2187907,0.00024657,2]
[338899041,1727038274688,-4735.24,0.00024657,2]
[338899042,1727038274698,-500.0,0.00024657,2]
[338899043,1727038274708,-200.0,0.00024658,15]
[338899044,1727038274718,-380.0,0.00024658,2]
[338899045,1727038274727,-49408.95,0.000247,14]
[338899046,1727038274736,-118914.77,0.000247,14]
[338899047,1727038274746,-1572.24,0.000247,7]
[338899048,1727038274756,-330.0,0.000248,2]
[338899049,1727038274765,-500.0,0.00024931,2]
[338899050,1727038274775,-500.0,0.00024931,2]
[338899051,1727038274785,-646.33,0.00024931,2]
[338899052,1727038274794,-500.0,0.00024931,2]
[338899053,1727038274803,-500.0,0.00024931,2]
[338899054,1727038274813,-500.0,0.00024931,2]
[338899055,1727038274825,-588.45,0.00024931,2]
[338899056,1727038274835,-500.0,0.00024931,2]
[338899057,1727038274845,-589.30514991,0.00024931,2]
[338899058,1727038274854,-200.0,0.00024931,2]
[338899059,1727038274864,-500.0,0.00024931,2]
[338899060,1727038274873,-199.60063398,0.00024931,2]
[338899061,1727038274883,-613.41,0.00024931,2]
[338899062,1727038274893,-500.0,0.00024931,2]
[338899063,1727038274902,-500.0,0.00024931,2]
[338899064,1727038274911,-719.26,0.00024931,2]
[338899065,1727038274922,-1007.63,0.00024931,7]
[338899066,1727038274932,-1007.63,0.00024931,7]
[338899067,1727038274942,-1007.63,0.00024931,7]
[338899068,1727038274952,-1007.63,0.00024931,7]
[338899069,1727038274962,-1007.63,0.00024931,7]
[338899070,1727038274974,-1007.63,0.00024931,7]
[338899071,1727038274984,-1007.63,0.00024931,7]
[338899072,1727038274993,-1007.63,0.00024931,7]
[338899073,1727038275003,-1007.63,0.00024931,7]
[338899074,1727038275013,-1007.63,0.00024931,7]
[338899075,1727038275024,-1007.63,0.00024931,7]
[338899076,1727038275036,-1007.63,0.00024931,7]
[338899077,1727038275048,-1007.63,0.00024931,7]
[338899078,1727038275058,-1007.63,0.00024931,7]
[338899079,1727038275068,-1007.63,0.00024931,7]
[338899080,1727038275078,-1007.63,0.00024931,7]
[338899081,1727038275088,-323.39227594,0.00024931,2]
[338899082,1727038275099,-1007.63,0.00024931,7]
[338899083,1727038275109,-1007.63,0.00024931,7]
[338899084,1727038275119,-1007.63,0.00024931,7]
[338899085,1727038275129,-1007.63,0.00024931,7]
[338899086,1727038275138,-1007.63,0.00024931,7]
[338899087,1727038275148,-1007.63,0.00024931,7]
[338899088,1727038275157,-1007.63,0.00024931,7]
[338899089,1727038275167,-1007.7515751,0.00024931,7]
[338899090,1727038275177,-500.0,0.00024931,2]
[338899091,1727038275186,-734.82,0.00024931,2]
[338899092,1727038275195,-578.07,0.00024931,2]
[338899093,1727038275205,-1109.37,0.00024931,2]
[338899094,1727038275215,-500.0,0.00024931,2]
[338899095,1727038275225,-660.37,0.00024931,2]
[338899096,1727038275234,-659.72,0.00024931,2]
[338899097,1727038275243,-500.0,0.00024931,2]
[338899098,1727038275252,-602.57,0.00024931,2]
[338899099,1727038275261,-500.0,0.00024931,2]
[338899100,1727038275271,-500.0,0.00024931,2]
[338899101,1727038275281,-500.0,0.00024931,2]
[338899102,1727038275290,-685.75,0.00024931,2]
[338899103,1727038275301,-500.0,0.00024931,2]
[338899104,1727038275311,-314.76896274,0.00024931,2]
[338899105,1727038275320,-618.82745159,0.00024931,2]
[338899106,1727038275330,-500.0,0.00024931,2]
[338899107,1727038275342,-500.0,0.00024931,2]
[338899108,1727038275353,-500.0,0.00024931,2]
[338899109,1727038275363,-500.0,0.00024931,2]
[338899110,1727038275372,-1924.4,0.00024931,2]
[338899111,1727038275381,-709.77,0.00024931,2]
[338899112,1727038275391,-500.0,0.00024931,2]
[338899113,1727038275403,-500.0,0.00024931,2]
[338899114,1727038275414,-500.0,0.00024931,2]
[338899115,1727038275426,-529.87808665,0.00024931,2]
[338899116,1727038275436,-1639.55,0.00024931,2]
[338899117,1727038275446,-500.0,0.00024931,2]
[338899118,1727038275455,-500.0,0.00024931,2]
[338899119,1727038275466,-500.0,0.00024931,2]
[338899120,1727038275475,-500.0,0.00024931,2]
[338899121,1727038275485,-453.13849213,0.00024931,2]
[338899122,1727038275494,-204.69,0.00024931,2]
[338899123,1727038275503,-500.0,0.00024931,2]
[338899124,1727038275512,-501.85,0.00024931,2]
[338899125,1727038275521,-555.40117003,0.00024931,2]
[338899126,1727038275530,-876.95,0.00024931,2]
[338899127,1727038275539,-500.0,0.00024931,2]
[338899128,1727038275549,-2645.4,0.00024931,2]
[338899129,1727038275559,-191.76523343,0.00024931,2]
[338899130,1727038275568,-500.0,0.00024931,2]
[338899131,1727038275577,-500.0,0.00024931,2]
[338899132,1727038275586,-654.53,0.00024931,2]
[338899133,1727038275597,-32172.17,0.00024931,2]
[338899134,1727038275606,-4735.24,0.00024931,2]
[338899135,1727038275617,-500.0,0.00024931,2]
[338899136,1727038275626,-151.0,0.00024941,3]
[338899137,1727038275635,-500.0,0.00025,30]
[338899138,1727038275645,-979.80230678,0.00025,30]
[338899139,1727038275654,-500.0,0.00025,30]
[338899140,1727038275662,-500.0,0.00025,30]
[338899141,1727038275671,-500.0,0.00025,30]
[338899142,1727038275680,-500.0,0.00025,30]
[338899143,1727038275689,-500.0,0.00025,30]
[338899144,1727038275698,-500.0,0.00025,30]
[338899145,1727038275707,-500.0,0.00025,30]
[338899146,1727038275717,-500.0,0.00025,30]
[338899147,1727038275732,-500.0,0.00025,30]
[338899148,1727038275742,-500.0,0.00025,30]
[338899149,1727038275752,-18106.54993319,0.00025,2]
[338899151,1727038275761,-500.0,0.00025,30]
[338899152,1727038275771,-500.0,0.00025,30]
[338899153,1727038275780,-500.0,0.00025,30]
[338899154,1727038275789,-500.0,0.00025,30]
[338899155,1727038275798,-500.0,0.00025,30]
[338899156,1727038275808,-500.0,0.00025,30]
[338899157,1727038275892,-500.0,0.00025,30]
[338899158,1727038275908,-277.38695624,0.00025,30]
[338899159,1727038275919,-1019.17476587,0.00025,2]
[338899160,1727038275929,-232.28264423,0.00025,30]
[338899161,1727038275939,-1017.0,0.00025,2]
[338899162,1727038275950,-989.03192254,0.00025,30]
[338899163,1727038275959,-593.45123994,0.00025,30]
[338899164,1727038275969,-200.0,0.00025,2]
[338899165,1727038275979,-151.0,0.000252,90]
[338899166,1727038275987,-500.0,0.00025205,2]
[338899167,1727038275997,-500.0,0.00025205,2]
[338899168,1727038276006,-646.33,0.00025205,2]
[338899169,1727038276018,-500.0,0.00025205,2]
[338899170,1727038276029,-500.0,0.00025205,2]
[338899171,1727038276040,-588.45,0.00025205,2]
[338899172,1727038276051,-500.0,0.00025205,2]
[338899173,1727038276060,-500.0,0.00025205,2]
[338899174,1727038276069,-200.0,0.00025205,2]
[338899175,1727038276078,-613.41,0.00025205,2]
[338899176,1727038276088,-500.0,0.00025205,2]
[338899177,1727038276098,-500.0,0.00025205,2]
[338899178,1727038276107,-719.26,0.00025205,2]
[338899179,1727038276116,-500.0,0.00025205,2]
[338899180,1727038276127,-734.82,0.00025205,2]
[338899181,1727038276137,-578.07,0.00025205,2]
[338899182,1727038276145,-1109.37,0.00025205,2]
[338899183,1727038276155,-500.0,0.00025205,2]
[338899184,1727038276166,-660.37,0.00025205,2]
[338899185,1727038276176,-659.72,0.00025205,2]
[338899186,1727038276185,-500.0,0.00025205,2]
[338899187,1727038276195,-602.57,0.00025205,2]
[338899188,1727038276204,-500.0,0.00025205,2]